fUST/lending_fUST_20240902
["ID","MTS","AMOUNT","RATE_DAILY","PERIOD"]
[336968547,1725268249719,-1717.5,0.00026301,2]
[336968548,1725268249729,-833.93,0.00026301,2]
[336968549,1725268249738,-896.29,0.00026301,2]
[336968550,1725268249747,-553.305742,0.00026301,2]
[336968551,1725268249762,-1041.22,0.00026301,2]
[336968552,1725268249773,-721.32,0.00026301,2]
[336968553,1725268249783,-716.55,0.00026301,2]
[336968554,1725268249793,-548.96,0.00026301,2]
[336968555,1725268249805,-500.0,0.00026301,2]
[336968556,1725268249814,-500.0,0.00026301,2]
[336968557,1725268249824,-922.19,0.00026301,2]
[336968558,1725268249837,-1351.76,0.00026301,2]
[336968559,1725268249847,-709.31,0.00026301,2]
[336968560,1725268249859,-1100.92,0.00026301,2]
[336968561,1725268249869,-500.0,0.00026301,2]
[336968562,1725268249879,-725.07,0.00026301,2]
[336968563,1725268249890,-786.24,0.00026301,2]
[336968564,1725268249901,-670.61,0.00026301,2]
[336968565,1725268249911,-752.08,0.00026301,2]
[336968566,1725268249921,-500.0,0.00026301,2]
[336968567,1725268249931,-500.0,0.00026301,2]
[336968568,1725268249942,-1288.89,0.00026301,2]
[336968569,1725268249953,-651.62,0.00026301,2]
[336968570,1725268249963,-500.0,0.00026301,2]
[336968571,1725268249972,-4831.17,0.00026301,2]
[336968572,1725268249981,-500.0,0.00026301,2]
[336968573,1725268249990,-500.0,0.00026301,2]
[336968574,1725268250001,-1039.95,0.00026301,2]
[336968575,1725268250010,-952.33,0.00026301,2]
[336968576,1725268250019,-500.0,0.00026301,2]
[336968577,1725268250029,-500.0,0.00026301,2]
[336968578,1725268250038,-4412.48,0.00026301,2]
[336968579,1725268250048,-1008.72,0.00026301,2]
[336968580,1725268250058,-966.08,0.00026301,2]
[336968581,1725268250067,-500.0,0.00026301,2]
[336968582,1725268250077,-1168.82,0.00026301,2]
[336968583,1725268250087,-812.27,0.00026301,2]
[336968584,1725268250096,-500.0,0.00026301,2]
[336968585,1725268250105,-763.87,0.00026301,2]
[336968586,1725268250114,-1739.54,0.00026301,2]
[336968587,1725268250124,-743.87,0.00026301,2]
[336968588,1725268250133,-581.21,0.00026301,2]
[336968589,1725268250143,-2183.91,0.00026301,2]
[336968590,1725268250152,-978.88,0.00026301,2]
[336968591,1725268250162,-1339.94,0.00026301,2]
[336968592,1725268250173,-500.0,0.00026301,2]
[336968593,1725268250183,-597.29,0.00026301,2]
[336968594,1725268250193,-500.0,0.00026301,2]
[336968595,1725268250205,-500.0,0.00026301,2]
[336968596,1725268250215,-383.358185,0.00026326,2]
[336968597,1725268250225,-466.059004,0.00026326,2]
[336968598,1725268250235,-4552.22,0.000264,14]
[336968599,1725268250245,-1500.0,0.00026419,2]
[336968600,1725268250255,-150.111,0.00026518,2]
[336968601,1725268250265,-2500.0,0.00026557,2]
[336968602,1725268250276,-276.1028353,0.00026565,3]
[336968603,1725268250286,-2500.0,0.00026566,2]
[336968604,1725268250296,-225.76429,0.00026572,7]
[336968605,1725268250306,-225.76429,0.00026572,7]
[336968606,1725268250317,-150.114,0.00026572,2]
[336968607,1725268250327,-150.434,0.00026572,2]
[336968608,1725268250337,-150.0,0.00026572,2]
[336968609,1725268250348,-150.109,0.00026572,2]
[336968610,1725268250358,-500.0,0.00026575,2]
[336968611,1725268250368,-500.0,0.00026575,2]
[336968612,1725268250380,-1722.13792376,0.00026575,2]
[336968613,1725268250392,-151.0,0.00026575,7]
[336968614,1725268250405,-500.0,0.00026575,2]
[336968615,1725268250414,-588.10352603,0.00026575,2]
[336968616,1725268250424,-2500.0,0.00026575,2]
[336968617,1725268250434,-500.0,0.00026575,2]
[336968618,1725268250444,-505.07,0.00026575,2]
[336968619,1725268250454,-627.71,0.00026575,2]
[336968620,1725268250464,-490.70956171,0.00026575,2]
[336968621,1725268250474,-500.0,0.00026575,2]
[336968622,1725268250484,-500.0,0.00026575,2]
[336968623,1725268250494,-510.3,0.00026575,2]
[336968624,1725268250505,-500.0,0.00026575,2]
[336968625,1725268250514,-500.0,0.00026575,2]
[336968626,1725268250524,-500.0,0.00026575,2]
[336968627,1725268250534,-500.0,0.00026575,2]
[336968628,1725268250543,-500.0,0.00026575,2]
[336968629,1725268250553,-500.0,0.00026575,2]
[336968630,1725268250562,-500.0,0.00026575,2]
[336968631,1725268250572,-500.0,0.00026575,2]
[336968632,1725268250582,-1945.44,0.00026575,2]
[336968633,1725268250591,-500.0,0.00026575,2]
[336968634,1725268250601,-645.42,0.00026575,2]
[336968635,1725268250611,-500.0,0.00026575,2]
[336968636,1725268250620,-500.0,0.00026575,2]
[336968637,1725268250629,-1521.02,0.00026575,2]
[336968638,1725268250639,-500.0,0.00026575,2]
[336968639,1725268250649,-500.0,0.00026575,2]
[336968640,1725268250659,-524.31,0.00026575,2]
[336968641,1725268250669,-500.0,0.00026575,2]
[336968642,1725268250679,-613.13,0.00026575,2]
[336968643,1725268250689,-500.0,0.00026575,2]
[336968644,1725268250700,-527.33,0.00026575,2]
[336968645,1725268250710,-536.24,0.00026575,2]
[336968646,1725268250720,-500.0,0.00026575,2]
[336968647,1725268250730,-162.01295731,0.00026575,2]
[336968648,1725268250740,-500.0,0.00026575,2]
[336968649,1725268250752,-588.69,0.00026575,2]
[336968650,1725268250764,-1320.9,0.00026575,2]
[336968651,1725268250776,-500.0,0.00026575,2]
[336968652,1725268250786,-784.96,0.00026575,2]
[336968653,1725268250798,-887.9,0.00026575,2]
[336968654,1725268250810,-500.0,0.00026575,2]
[336968655,1725268250820,-500.0,0.00026575,2]
[336968656,1725268250833,-500.0,0.00026575,2]
[336968657,1725268250843,-500.0,0.00026575,2]
[336968658,1725268250853,-784.45,0.00026575,2]
[336968659,1725268250863,-500.0,0.00026575,2]
[336968660,1725268250872,-599.79,0.00026575,2]
[336968661,1725268250882,-556.99,0.00026575,2]
[336968662,1725268250893,-1076.92,0.00026575,2]
[336968663,1725268250903,-808.98,0.00026575,2]
[336968664,1725268250912,-500.0,0.00026575,2]
[336968665,1725268250921,-172.08964571,0.00026575,2]
[336968666,1725268250931,-500.0,0.00026575,2]
[336968667,1725268250941,-500.0,0.00026575,2]
[336968668,1725268250950,-893.38,0.00026575,2]
[336968669,1725268250959,-500.0,0.00026575,2]
[336968670,1725268250968,-500.0,0.00026575,2]
[336968671,1725268250978,-957.45,0.00026575,2]
[336968672,1725268250988,-1244.73,0.00026575,2]
[336968673,1725268250998,-414.19055083,0.00026575,2]
[336968674,1725268251008,-634.67,0.00026575,2]
[336968675,1725268251017,-3102.34,0.00026575,2]
[336968676,1725268251027,-666.4,0.00026575,2]
[336968677,1725268251036,-1717.5,0.00026575,2]
[336968678,1725268251047,-833.93,0.00026575,2]
[336968679,1725268251056,-896.29,0.00026575,2]
[336968680,1725268251066,-1041.22,0.00026575,2]
[336968681,1725268251075,-721.32,0.00026575,2]
[336968682,1725268251085,-2500.0,0.00026575,2]
[336968683,1725268251094,-716.55,0.00026575,2]
[336968684,1725268251103,-548.96,0.00026575,2]
[336968685,1725268251113,-500.0,0.00026575,2]
[336968686,1725268251122,-153.27220952,0.00026575,2]
[336968687,1725268251131,-151.0,0.00026575,7]
[336968688,1725268251141,-922.19,0.00026575,2]
[336968689,1725268251150,-1351.76,0.00026575,2]
[336968690,1725268251160,-709.31,0.00026575,2]
[336968691,1725268251169,-1100.92,0.00026575,2]
[336968692,1725268251180,-500.0,0.00026575,2]
[336968693,1725268251190,-725.07,0.00026575,2]
[336968694,1725268251200,-786.24,0.00026575,2]
[336968695,1725268251209,-670.61,0.00026575,2]
[336968696,1725268251219,-752.08,0.00026575,2]
[336968697,1725268251229,-500.0,0.00026575,2]
[336968698,1725268251239,-500.0,0.00026575,2]
[336968699,1725268251248,-1288.89,0.00026575,2]
[336968700,1725268251258,-651.62,0.00026575,2]
[336968701,1725268251268,-500.0,0.00026575,2]
[336968702,1725268251278,-500.0,0.00026575,2]
[336968703,1725268251288,-3626.39920326,0.00026575,2]
[336968704,1725268254683,-1204.77079674,0.00026575,2]
[336968705,1725268254692,-500.0,0.00026575,2]
[336968706,1725268254702,-1039.95,0.00026575,2]
[336968707,1725268254712,-952.33,0.00026575,2]
[336968708,1725268254721,-500.0,0.00026575,2]
[336968709,1725268254731,-500.0,0.00026575,2]
[336968710,1725268254740,-4412.48,0.00026575,2]
[336968711,1725268254749,-1008.72,0.00026575,2]
[336968712,1725268254764,-966.08,0.00026575,2]
[336968713,1725268254774,-500.0,0.00026575,2]
[336968714,1725268254784,-1168.82,0.00026575,2]
[336968715,1725268254795,-812.27,0.00026575,2]
[336968716,1725268254804,-500.0,0.00026575,2]
[336968717,1725268254814,-763.87,0.00026575,2]
[336968718,1725268254824,-1739.54,0.00026575,2]
[336968719,1725268254835,-743.87,0.00026575,2]
[336968720,1725268254845,-581.21,0.00026575,2]
[336968721,1725268254857,-2183.91,0.00026575,2]
[336968722,1725268254866,-978.88,0.00026575,2]
[336968723,1725268254876,-1339.94,0.00026575,2]
[336968724,1725268254885,-500.0,0.00026575,2]
[336968725,1725268254896,-597.29,0.00026575,2]
[336968726,1725268254906,-500.0,0.00026575,2]
[336968727,1725268254917,-1061.05570377,0.00026651,2]
[336968728,1725268255154,-500.0,0.00024657,2]
[336968729,1725268255164,-500.0,0.00024657,2]
[336968730,1725268255174,-500.0,0.00024931,2]
[336968731,1725268255183,-500.0,0.00025205,2]
[336968732,1725268255193,-500.0,0.00025479,2]
[336968733,1725268255202,-500.0,0.00025753,2]
[336968734,1725268255212,-500.0,0.00026027,2]
[336968735,1725268255221,-576.08235039,0.00026575,2]
[336968736,1725268255230,-855.73521723,0.00026651,2]
[336968737,1725268255240,-155.569969,0.00026651,2]
[336968738,1725268255250,-2330.295019,0.00026651,2]
[336968739,1725268255260,-383.358185,0.00026651,2]
[336968740,1725268255270,-466.059004,0.00026651,2]
[336968741,1725268255280,-500.0,0.00026712,2]
[336968742,1725268255290,-500.0,0.00026712,2]
[336968743,1725268255299,-151.0,0.00026735,3]
[336968744,1725268255310,-500.0,0.00026849,2]
[336968745,1725268255320,-266.89527363,0.00026849,2]
[336968746,1725268255330,-324.43599597,0.00026849,2]
[336968747,1725268255342,-175.56400403,0.00026849,2]
[336968748,1725268255351,-500.0,0.00026849,2]
[336968749,1725268255361,-505.07,0.00026849,2]
[336968750,1725268255371,-627.71,0.00026849,2]
[336968751,1725268255383,-500.0,0.00026849,2]
[336968752,1725268255393,-500.0,0.00026849,2]
[336968753,1725268255402,-510.3,0.00026849,2]
[336968754,1725268255413,-500.0,0.00026849,2]
[336968755,1725268255422,-500.0,0.00026849,2]
[336968756,1725268255432,-500.0,0.00026849,2]
[336968757,1725268255443,-500.0,0.00026849,2]
[336968758,1725268255454,-500.0,0.00026849,2]
[336968759,1725268255465,-500.0,0.00026849,2]
[336968760,1725268255476,-500.0,0.00026849,2]
[336968761,1725268255488,-225.76429,0.00026849,7]
[336968762,1725268255499,-225.76429,0.00026849,7]
[336968763,1725268255510,-500.0,0.00026849,2]
[336968764,1725268255521,-1945.44,0.00026849,2]
[336968765,1725268255531,-500.0,0.00026849,2]
[336968766,1725268255543,-645.42,0.00026849,2]
[336968767,1725268255585,-500.0,0.00026849,2]
[336968768,1725268255598,-500.0,0.00026849,2]
[336968769,1725268255608,-1521.02,0.00026849,2]
[336968770,1725268255620,-500.0,0.00026849,2]
[336968771,1725268255632,-151.0,0.00026849,7]
[336968772,1725268255643,-500.0,0.00026849,2]
[336968773,1725268255655,-524.31,0.00026849,2]
[336968774,1725268255665,-500.0,0.00026849,2]
[336968775,1725268255674,-613.13,0.00026849,2]
[336968776,1725268255685,-500.0,0.00026849,2]
[336968777,1725268255694,-527.33,0.00026849,2]
[336968778,1725268255704,-536.24,0.00026849,2]
[336968779,1725268255713,-500.0,0.00026849,2]
[336968780,1725268255722,-500.0,0.00026849,2]
[336968781,1725268255732,-588.69,0.00026849,2]
[336968782,1725268255742,-1320.9,0.00026849,2]
[336968783,1725268255752,-500.0,0.00026849,2]
[336968784,1725268255773,-784.96,0.00026849,2]
[336968785,1725268255783,-887.9,0.00026849,2]
[336968786,1725268255793,-500.0,0.00026849,2]
[336968787,1725268255803,-500.0,0.00026849,2]
[336968788,1725268255813,-500.0,0.00026849,2]
[336968789,1725268255822,-500.0,0.00026849,2]
[336968790,1725268255833,-784.45,0.00026849,2]
[336968791,1725268255842,-500.0,0.00026849,2]
[336968792,1725268255852,-599.79,0.00026849,2]
[336968793,1725268255863,-556.99,0.00026849,2]
[336968794,1725268255873,-1076.92,0.00026849,2]
[336968795,1725268255883,-808.98,0.00026849,2]
[336968796,1725268255892,-500.0,0.00026849,2]
[336968797,1725268255903,-500.0,0.00026849,2]
[336968798,1725268255913,-500.0,0.00026849,2]
[336968799,1725268255922,-893.38,0.00026849,2]
[336968800,1725268255932,-500.0,0.00026849,2]
[336968801,1725268255942,-500.0,0.00026849,2]
[336968802,1725268255952,-957.45,0.00026849,2]
[336968803,1725268255963,-1244.73,0.00026849,2]
[336968804,1725268255973,-634.67,0.00026849,2]
[336968805,1725268255982,-3102.34,0.00026849,2]
[336968806,1725268255992,-666.4,0.00026849,2]
[336968807,1725268256001,-1717.5,0.00026849,2]
[336968808,1725268256019,-833.93,0.00026849,2]
[336968809,1725268256029,-896.29,0.00026849,2]
[336968810,1725268256038,-1041.22,0.00026849,2]
[336968811,1725268256048,-721.32,0.00026849,2]
[336968812,1725268256057,-716.55,0.00026849,2]
[336968813,1725268256067,-548.96,0.00026849,2]
[336968814,1725268256076,-500.0,0.00026849,2]
[336968815,1725268256086,-922.19,0.00026849,2]
[336968816,1725268256095,-1351.76,0.00026849,2]
[336968817,1725268256105,-709.31,0.00026849,2]
[336968818,1725268256115,-1100.92,0.00026849,2]
[336968819,1725268256125,-500.0,0.00026849,2]
[336968820,1725268256135,-725.07,0.00026849,2]
[336968821,1725268256145,-786.24,0.00026849,2]
[336968822,1725268256155,-670.61,0.00026849,2]
[336968823,1725268256165,-752.08,0.00026849,2]
[336968824,1725268256175,-500.0,0.00026849,2]
[336968825,1725268256184,-500.0,0.00026849,2]
[336968826,1725268256194,-1288.89,0.00026849,2]
[336968827,1725268256203,-651.62,0.00026849,2]
[336968828,1725268256213,-500.0,0.00026849,2]
[336968829,1725268256223,-500.0,0.00026849,2]
[336968830,1725268256233,-4831.17,0.00026849,2]
[336968831,1725268256243,-500.0,0.00026849,2]
[336968832,1725268256253,-1039.95,0.00026849,2]
[336968833,1725268256266,-952.33,0.00026849,2]
[336968834,1725268256275,-500.0,0.00026849,2]
[336968835,1725268256285,-500.0,0.00026849,2]
[336968836,1725268256294,-4412.48,0.00026849,2]
[336968837,1725268256303,-1008.72,0.00026849,2]
[336968838,1725268256313,-966.08,0.00026849,2]
[336968839,1725268256323,-500.0,0.00026849,2]
[336968840,1725268256333,-1168.82,0.00026849,2]
[336968841,1725268256342,-812.27,0.00026849,2]
[336968842,1725268256352,-500.0,0.00026849,2]
[336968843,1725268256362,-763.87,0.00026849,2]
[336968844,1725268256372,-1739.54,0.00026849,2]
[336968845,1725268256382,-743.87,0.00026849,2]
[336968846,1725268256393,-581.21,0.00026849,2]
[336968847,1725268256404,-2183.91,0.00026849,2]
[336968848,1725268256414,-978.88,0.00026849,2]
[336968849,1725268256424,-1339.94,0.00026849,2]
[336968850,1725268256434,-500.0,0.00026849,2]
[336968851,1725268256444,-597.29,0.00026849,2]
[336968852,1725268256453,-500.0,0.00026849,2]
[336968853,1725268256463,-1059.1,0.000269,14]
[336968854,1725268256473,-1687.89,0.000269,7]
[336968855,1725268256483,-153.0,0.00026922,2]
[336968856,1725268256493,-1839.46077962,0.00026976,2]
[336968857,1725268256600,-77.33014138,0.00026976,2]
[336968858,1725268256610,-155.569969,0.00026976,2]
[336968859,1725268256620,-75.31101195,0.00026976,2]
[336968860,1725268259587,-500.0,0.00026301,2]
[336968861,1725268259598,-500.0,0.00026575,2]
[336968862,1725268259607,-500.0,0.00026849,2]
[336968863,1725268259616,-2254.98400705,0.00026976,2]
[336968864,1725268259626,-383.358185,0.00026976,2]
[336968865,1725268259636,-466.059004,0.00026976,2]
[336968866,1725268259646,-500.0,0.00026986,2]
[336968867,1725268259656,-3200.0,0.00026986,2]
[336968868,1725268259666,-425.92,0.00026986,2]
[336968869,1725268259676,-1819.64104718,0.00027,3]
[336968870,1725268290304,10.86928182,0.00023945,2]
[336968876,1725268858367,180.430616,0.00014247,2]
[336968877,1725269000307,162.63520076,0.0002,2]
[336968879,1725269239341,-255.865993,0.00023433,2]
[336968880,1725269239368,-1949.03208803,0.00023458,2]
[336968881,1725269242107,-99.41168337,0.00023458,2]
[336968882,1725269242130,-210.2381109,0.00023507,2]
[336968883,1725269242151,-309.494304,0.00023836,2]
[336968884,1725269242174,-161.408682,0.00023853,2]
[336968885,1725269242197,-161.408682,0.00024474,2]
[336968886,1725269242219,-0.9700677,0.00024556,2]
[336968895,1725269360163,-161.174852,0.000237,2]
[336968928,1725269438306,-161.174852,0.00024318,2]
[336968929,1725269438316,-300.0,0.00024368,2]
[336968930,1725269438326,-4137.1014412,0.00024369,2]
[336968931,1725269438378,-179122.35440311,0.00024369,2]
[336968932,1725269438387,-3931.31351248,0.00024457,2]
[336968933,1725269438398,-10996.00063613,0.00024557,3]
[336968934,1725269438407,-748.86793747,0.00024557,2]
[336968935,1725269438417,-678.02914794,0.00024557,2]
[336968936,1725269438427,-599.67847494,0.00024647,3]
[336968937,1725269438438,-500.0,0.00024656,2]
[336968938,1725269438449,-3125.05443312,0.00024657,11]
[336968939,1725269438458,-500.96041637,0.00024657,2]
[336968940,1725269438468,-500.0,0.00024657,2]
[336968941,1725269438478,-500.0,0.00024657,2]
[336968942,1725269438487,-500.0,0.00024657,2]
[336968943,1725269438497,-500.0,0.00024657,2]
[336968944,1725269438506,-500.0,0.00024657,2]
[336968945,1725269438516,-500.0,0.00024657,2]
[336968946,1725269438526,-501.82677298,0.00024657,2]
[336968947,1725269438536,-500.0,0.00024657,2]
[336968948,1725269438546,-500.0,0.00024657,2]
[336968949,1725269438556,-500.0,0.00024657,2]
[336968950,1725269438566,-500.40366066,0.00024657,2]
[336968951,1725269438576,-500.0,0.00024657,2]
[336968952,1725269438587,-500.0,0.00024657,2]
[336968953,1725269438597,-500.0,0.00024657,2]
[336968954,1725269438607,-500.0,0.00024657,2]
[336968955,1725269438616,-500.0,0.00024657,2]
[336968956,1725269438626,-500.0,0.00024657,2]
[336968957,1725269438636,-503.96917444,0.00024657,2]
[336968958,1725269438646,-500.0,0.00024657,2]
[336968959,1725269438656,-500.0,0.00024657,2]
[336968960,1725269438666,-500.0,0.00024657,2]
[336968961,1725269438675,-590.59476938,0.00024657,2]
[336968962,1725269438685,-500.0,0.00024657,2]
[336968963,1725269438695,-500.0,0.00024657,2]
[336968964,1725269438705,-500.0,0.00024657,2]
[336968965,1725269438714,-500.0,0.00024657,2]
[336968966,1725269438724,-500.0,0.00024657,2]
[336968967,1725269438734,-500.0,0.00024657,2]
[336968968,1725269438744,-500.0,0.00024657,2]
[336968969,1725269438754,-500.0,0.00024657,2]
[336968970,1725269438764,-200.41400638,0.00024657,2]
[336968971,1725269438773,-500.0,0.00024657,2]
[336968972,1725269438782,-539.30299554,0.00024657,2]
[336968973,1725269438792,-505.89865294,0.00024657,2]
[336968974,1725269438801,-500.0,0.00024657,2]
[336968975,1725269438819,-500.0,0.00024657,2]
[336968976,1725269438839,-500.0,0.00024657,2]
[336968977,1725269438857,-500.0,0.00024657,2]
[336968978,1725269438872,-500.0,0.00024657,2]
[336968979,1725269438887,-500.0,0.00024657,2]
[336968980,1725269438899,-500.0,0.00024657,2]
[336968981,1725269438912,-500.0,0.00024657,2]
[336968982,1725269438926,-500.0,0.00024657,2]
[336968983,1725269438939,-500.0,0.00024657,2]
[336968984,1725269438952,-500.0,0.00024657,2]
[336968985,1725269438965,-500.0,0.00024657,2]
[336968986,1725269438979,-500.0,0.00024657,2]
[336968987,1725269438991,-500.0,0.00024657,2]
[336968988,1725269439004,-531.04903341,0.00024657,2]
[336968989,1725269439019,-500.0,0.00024657,2]
[336968990,1725269439032,-500.0,0.00024657,2]
[336968991,1725269439044,-500.0,0.00024657,2]
[336968992,1725269439056,-500.0,0.00024657,2]
[336968993,1725269439071,-500.0,0.00024657,2]
[336968994,1725269439086,-500.0,0.00024657,2]
[336968995,1725269439099,-213.17927534,0.00024657,2]
[336968996,1725269439113,-500.0,0.00024657,2]
[336968997,1725269439125,-500.0,0.00024657,2]
[336968998,1725269439136,-208.2996,0.00024657,2]
[336968999,1725269439148,-200.0,0.00024657,2]
[336969000,1725269439158,-500.0,0.00024657,2]
[336969001,1725269439171,-500.0,0.00024657,2]
[336969002,1725269439181,-500.0,0.00024657,2]
[336969003,1725269439195,-500.0,0.00024657,2]
[336969004,1725269439207,-500.0,0.00024657,2]
[336969005,1725269439219,-500.0,0.00024657,2]
[336969006,1725269439231,-500.0,0.00024657,2]
[336969007,1725269439244,-500.0,0.00024657,2]
[336969008,1725269439256,-500.0,0.00024657,2]
[336969009,1725269439269,-500.0,0.00024657,2]
[336969010,1725269439281,-500.0,0.00024657,2]
[336969011,1725269439292,-500.0,0.00024657,2]
[336969012,1725269439302,-500.0,0.00024657,2]
[336969013,1725269439313,-500.0,0.00024657,2]
[336969014,1725269439323,-500.0,0.00024657,2]
[336969015,1725269439335,-500.0,0.00024657,2]
[336969016,1725269439348,-500.0,0.00024657,2]
[336969017,1725269439360,-500.73495151,0.00024657,2]
[336969018,1725269439372,-500.0,0.00024657,2]
[336969019,1725269439383,-500.0,0.00024657,2]
[336969020,1725269439393,-500.0,0.00024657,2]
[336969021,1725269439406,-500.0,0.00024657,2]
[336969022,1725269439420,-500.0,0.00024657,2]
[336969023,1725269439432,-500.0,0.00024657,2]
[336969024,1725269439448,-502.22836156,0.00024657,2]
[336969025,1725269439459,-500.0,0.00024657,2]
[336969026,1725269439469,-501.55765007,0.00024657,2]
[336969027,1725269439479,-500.0,0.00024657,2]
[336969028,1725269439490,-500.0,0.00024657,2]
[336969029,1725269439501,-500.0,0.00024657,2]
[336969030,1725269439512,-500.0,0.00024657,2]
[336969031,1725269439524,-500.0,0.00024657,2]
[336969032,1725269439537,-585.91351314,0.00024657,2]
[336969033,1725269439556,-500.0,0.00024657,2]
[336969034,1725269439568,-500.0,0.00024657,2]
[336969035,1725269439580,-500.0,0.00024657,2]
[336969036,1725269439592,-500.0,0.00024657,2]
[336969037,1725269439604,-500.0,0.00024657,2]
[336969038,1725269439616,-500.0,0.00024657,2]
[336969039,1725269439627,-500.0,0.00024657,2]
[336969040,1725269439639,-391.54057447,0.00024657,2]
[336969041,1725269439651,-500.0,0.00024657,2]
[336969042,1725269439663,-308.68349162,0.00024657,2]
[336969043,1725269439675,-500.0,0.00024657,2]
[336969044,1725269439687,-500.0,0.00024657,2]
[336969045,1725269439699,-500.0,0.00024657,2]
[336969046,1725269439710,-500.0,0.00024657,2]
[336969047,1725269439721,-500.0,0.00024657,2]
[336969048,1725269439732,-349.36606398,0.00024657,2]
[336969049,1725269439744,-500.0,0.00024657,2]
[336969050,1725269439756,-500.0,0.00024657,2]
[336969051,1725269439767,-222.45775248,0.00024657,2]
[336969052,1725269439778,-500.0,0.00024657,2]
[336969053,1725269439789,-500.0,0.00024657,2]
[336969055,1725269439801,-500.0,0.00024657,2]
[336969056,1725269439812,-500.43665897,0.00024657,2]
[336969057,1725269439825,-500.0,0.00024657,2]
[336969058,1725269439836,-500.0,0.00024657,2]
[336969059,1725269439847,-500.0,0.00024657,2]
[336969060,1725269439858,-500.0,0.00024657,2]
[336969061,1725269439869,-500.0,0.00024657,2]
[336969062,1725269439880,-500.0,0.00024657,2]
[336969063,1725269439892,-500.0,0.00024657,2]
[336969064,1725269439902,-500.0,0.00024657,2]
[336969065,1725269439914,-500.0,0.00024657,2]
[336969066,1725269439925,-500.0,0.00024657,2]
[336969067,1725269439935,-500.0,0.00024657,2]
[336969068,1725269439946,-500.0,0.00024657,2]
[336969069,1725269439957,-154.83952908,0.00024657,2]
[336969070,1725269439968,-500.0,0.00024657,2]
[336969071,1725269439979,-500.0,0.00024657,2]
[336969072,1725269439990,-500.0,0.00024657,2]
[336969073,1725269440000,-500.0,0.00024657,2]
[336969074,1725269440011,-500.0,0.00024657,2]
[336969075,1725269440023,-500.0,0.00024657,2]
[336969076,1725269440034,-500.0,0.00024657,2]
[336969077,1725269440045,-500.46054907,0.00024657,2]
[336969078,1725269440056,-500.0,0.00024657,2]
[336969079,1725269440067,-500.0,0.00024657,2]
[336969080,1725269440079,-500.0,0.00024657,2]
[336969081,1725269440089,-500.0,0.00024657,2]
[336969082,1725269440100,-578.52946165,0.00024657,2]
[336969083,1725269440111,-500.0,0.00024657,2]
[336969084,1725269440123,-444.9581942,0.00024657,2]
[336969085,1725269440134,-500.0,0.00024657,2]
[336969086,1725269440145,-500.0,0.00024657,2]
[336969087,1725269440158,-500.0,0.00024657,2]
[336969088,1725269440168,-500.0,0.00024657,2]
[336969089,1725269440179,-500.0,0.00024657,2]
[336969090,1725269440190,-505.84829861,0.00024657,2]
[336969091,1725269440202,-500.0,0.00024657,2]
[336969092,1725269440214,-500.0,0.00024657,2]
[336969093,1725269440224,-501.42005762,0.00024657,2]